{"text_format":"1","workbook":"xlsx","n_sheets":5,"sheets":["Instructions","Form","InputLists","Data","PrintedForm"],"not_rendered":{"charts":0,"images":0,"macros":1,"external_links":0,"defined_names":0,"comments":0,"pivot_tables":0},"unopened":[],"bounds":{"document_bytes":16777216,"sheet_cells":100000,"rows_first":2000,"rows_last":500,"rows_between":2000,"halvings":0,"cell_chars":16384,"cell_head_chars":4096},"cells_cut":0,"cells_raw":0,"read":"whole","date_system":"1900"}

{"sheet":"Instructions","index":0,"n_rows":20,"n_cols":1,"rows_kept":20,"cut":false,"hidden":false,"merged":[]}
["Instructions for Modifications"]
[]
["Before making any changes, please unprotect the sheet you wish to change."]
[]
["To change any of the Input List Data:"]
["1.  Unprotect the Form sheet - Review tab, Unprotect Sheet button"]
["2.  Unprotect the InputLists sheet - Review tab, Unprotect Sheet button"]
["3.  Locate the list to modify on the InputLists sheet"]
["4.  Add or remove data from the list"]
["5.  Go to the Form sheet and click on the cell using the modified Input List Data"]
["6.  Go to the Data Tab, choose the Data Validation button, Data Validation"]
["7.  Modify the list references to include the new data"]
["8.  Reprotect the Form sheet - Review tab, Protect Sheet button, ok"]
["9.  Reprotect the InputLists sheet - Review tab, Protect Sheet button, ok"]
["10.  Save the file"]
[]
[]
["Additional Notes:"]
["The Print Form macro uses the default printer with the default printer tray."]
["The Save File macro saves the file with the Participant Number in the default Excel directory."]

{"sheet":"Form","index":1,"n_rows":92,"n_cols":6,"rows_kept":92,"cut":false,"hidden":false,"merged":[[23,3,23,4],[23,5,23,6],[60,1,60,2],[66,1,66,2],[80,1,80,2],[46,1,46,2],[54,1,54,2],[2,1,2,2],[13,1,13,2],[28,1,28,2],[33,1,33,2],[41,1,41,2],[23,1,23,2]]}
[]
[]
[null,"1.  GRANT INFORMATION"]
[null,"1.1   Grant Number","AP-27832-15-60-A-6",null,"1.2  Grantee Name","Los Rios Community College District"]
[null,"1.3  Program Name","American Apprenticeship Initiative",null,"1.4  Program Sponsor Name","American River College"]
[null,"1.5  Employer Name",null,null,"1.6  Employer Identification #"]
[]
[null,"2.  STATUS"]
[]
[null,"2.1  Apprentice Type",null,null,"2.2  Registration Date"]
[null,"2.3  College",null,null,"2.4  Program Start Date"]
[null,"2.5  Participant Number",{"$f":"C11&\"-\"&LEFT(F16,1)&LEFT(C16,5)&\"-\"&RIGHT(F21,4)","v":"--"},null,"2.6  Program End Date"]
[null,null,"SC-jdoe-7845"]
[null,"3.  PERSONAL INFORMATION"]
[]
[null,"3.1   Last Name",null,null,"3.2   First Name"]
[null,"3.3   Suffix",null,null,"3.4  Middle Name"]
[null,"3.5   Social Security Number","***********"]
[null,"3.7   Street Address",null,null,"3.8   City"]
[null,"3.9   State",null,null,"3.10  Zip Code"]
[null,"3.11  Home Telephone",null,null,"3.12  Mobile Telephone"]
[null,"3.13  Email Address",null,null,"3.14  Gender"]
[null,"3.15  Date of Birth",null,null,"3.16  Permission to contact via text message"]
[null,"4.  Alternative Contact Information"]
[]
[null,"4.1  Full Name",null,null,"4.2  Email"]
[null,"4.3  Phone Number"]
[]
[null,"5.  DEMOGRAPHIC INFORMATION"]
[]
[null,"5.1  Disability Status",null,null,"5.2  Veteran Status"]
[null,"5.3  Race"]
[]
[null,"6.  EMPLOYMENT INFORMATION"]
[]
[null,"6.1  Current/Most Recent Occupation",null,null,"6.2  Education Status"]
[null,"6.3  Annual Earnings Prior to Enrollment",null,null,"6.4  Current Employment Status"]
[null,"6.5  Unemployment Compensation Eligibility Status",null,null,"6.6  Unemployment Insurance Status"]
[null,"6.7  Employment Level",null,null,"6.8  Underemployed Worker"]
[null,"6.9  Long-Term Unemployed"]
[]
[null,"7.  SCREENING INFORMATION"]
[]
[null,"7.1  Drug/Alcohol Screening",null,null,"7.2  Criminial Background Check"]
[null,"7.3  Physical Examination Received"]
[]
[null,"8.  PROGRAM ASSISTANCE"]
[]
[null,"8.1  Adult Basic Education",null,null,"8.2  Study Skills or Test Preparation Skills Instruction"]
[null,"8.3  Foundational Skills Instruction",null,null,"8.4  Life Skills/Job Readiness Instruction"]
[null,"8.5  English as a Second Language",null,null,"8.6  Pre-GED/GED Instruction"]
[null,"8.7  Work-Based Learning Experience",null,null,"8.8  Work-Based Learning Experience - Hours Received"]
[null,"8.9  Pre-Occupational or Basic Occupational Skills Instruction"]
[]
[null,"9.  SUPPORT SERVICES"]
[]
[null,"9.1  Case Management Assistance",null,null,"9.2  Work Clothes/Tools/Equipment"]
[null,"9.3  Child Care Assistance",null,null,"9.4  Other Supportive Services"]
[null,"9.5  Transportation Assistance"]
[]
[null,"10.  TEMPORARY ASSISTANCE TO NEEDY"]
[]
[null,"10.1  Temporary Assistance to Needy",null,null,"10.2  Supplemental Social Security Income/Social Security Disability"]
[null,"10.3  WIA/WIOA Participant",null,null,"10.4  Wagner-Peyser Act"]
[null,"10.5  Trade Adjustment Assistance",null,null,"10.6  Other Public Assistance Recipient"]
[]
[null,"11.  PROGRAM INFORMATION"]
[]
[null,"11.1   Occupational Title",null,null,"11.2  Occupational Code",{"$f":"VLOOKUP(C69,InputLists!Q2:R30,2,FALSE)","v":{"$error":"#N/A"}}]
[null,"11.3   Hours of Classroom and Hands-On Instruction Received",null,null,"11.4  On the Job credit"]
[null,"11.5   Entry Wage",null,null,"11.6  Degree Attenuation"]
[null,"11.7   Term Length",null,null,"11.8  Related Technical Instruction credit"]
[null,"11.9   Certificate Received",null,null,"11.10  Probationary Date"]
[null,"11.11  Received Interim Credit",null,null,"11.12  Term Remaining",{"$f":"C72-F70-F72","v":0}]
[null,"11.13  Expected Completion Date",null,null,"11.14  Current Status"]
[null,"11.15  Employment Status 1st Quarter",null,null,"11.16  Employment Status 2nd Quarter"]
[null,"11.17  Date Status Modified",null,null,"11.18  Previous Quarter Status"]
[null,"11.19  Exit Wage",null,null,"11.20  Exit Wage Date"]
[null,"11.21  Incumbent Worker Status",null,null,"11.22  Years of College (if any)"]
[]
[null,"12.  QUARTERLY INFORMATION"]
[]
[null,"1st Quarter",null,null,"3rd Quarter"]
[null,"12.1  Apprenticeship/ Employment Status",null,null,"12.7  Apprenticeship/ Employment Status"]
[null,"12.2  Hourly Wage of Apprenticeship/ Employment",null,null,"12.8  Hourly Wage of Apprenticeship/ Employment"]
[null,"12.3  Occupation Code",null,null,"12.9  Occupation Code"]
[null,null,{"$f":"VLOOKUP(C86,InputLists!Q2:R30,2,FALSE)","v":{"$error":"#N/A"}},null,null,{"$f":"VLOOKUP(F86,InputLists!Q2:R30,2,FALSE)","v":{"$error":"#N/A"}}]
[null,"2nd Quarter"]
[null,"12.4  Apprenticeship/ Employment Status"]
[null,"12.5  Hourly Wage of Apprenticeship/ Employment"]
[null,"12.6  Occupation Code"]
[null,null,{"$f":"VLOOKUP(C91,InputLists!Q2:R30,2,FALSE)","v":{"$error":"#N/A"}}]

{"sheet":"InputLists","index":2,"n_rows":30,"n_cols":18,"rows_kept":30,"cut":false,"hidden":false,"merged":[]}
["Yes/No","Gender","Yes/No/Other","Yes/No/Unknown","Race","Schooling","Employment Status","Unemployment Compensation","Employment Status after program","Incumbant Worker","Suffix","Earnings","Recognized Credential","Type","OnetCodes","Colleges","OccupationalTitles","OccupationalCode"]
["Yes","Male","Yes","Yes","American Indian/Alaskan Native","No schooling completed","Employed","Eligible","Retained By Current Employer","Need Skills Upgrade","I","$20,000 - $29,999","Occupational Skills Licensure","Apprentice","11-0000  Management Occupations","ARC","Aluminum Welder","51-4121.06"]
["No","Female","No","No","Asian","Nursery school to 8th grade","Employed - being layed off","Eligible - not referred by State agency","Employed By a Different Employer","New Skills","II","$30,000 - $39,999",null,"Pre-Apprentice","13-0000  Business and Financial Operations Occupations","COS","Fabrication Welder","51-4121.06"]
[null,"Decline to state","Decline to State","Unknown","Black/African American","Some high school, no diploma","Not Employed","No longer eligible","Unemployed",null,"III","$40,000 - $49,999",null,null,"15-0000  Computer and Mathematical Occupations","CRC","Fabricator","51-4121.06"]
[null,null,null,null,"Ethnicity Hispanic/Latino","High School Graduate, diploma or equivalent",null,"Does not apply","Not Yet Available",null,"Jr.","$50,000 - $59,999",null,null,"17-0000  Architecture and Engineering Occupations","SC","Fitter/Welder","51-4121.06"]
[null,null,null,null,"Native Hawaiian/Other Pacific Islander","Some college credit, no degree",null,null,null,null,"Sr.","$60,000 - $69,999",null,null,"19-0000  Life, Physical, and Social Science Occupations","YC","Maintenance Welder - Mig Welder","51-4121.06"]
[null,null,null,null,"White","Trade/technical/vocational training",null,null,null,null,null,"over $70,000",null,null,"21-0000  Community and Social Service Occupations",null,"Sub Arc Operator","51-4121.06"]
[null,null,null,null,null,"Associate degree",null,null,null,null,null,null,null,null,"23-0000  Legal Occupations",null,"Welder","51-4121.06"]
[null,null,null,null,null,"Bachelor's degree",null,null,null,null,null,null,null,null,"25-0000  Education, Training, and Library Occupations",null,"Welder - Fitter","51-4121.06"]
[null,null,null,null,null,"Master's degree",null,null,null,null,null,null,null,null,"27-0000  Arts, Design, Entertainment, Sports, and Media Occupations",null,"Welder/Fabricator","51-4121.06"]
[null,null,null,null,null,"Professional degree",null,null,null,null,null,null,null,null,"29-0000  Healthcare Practitioners and Technical Occupations",null,"Core Machine Operator","51-4071.00"]
[null,null,null,null,null,"Doctorate degree",null,null,null,null,null,null,null,null,"31-0000  Healthcare Support Occupations",null,"Core Maker","51-4071.00"]
[null,null,null,null,null,null,null,null,null,null,null,null,null,null,"33-0000  Protective Service Occupations",null,"Core Stripper","51-4071.00"]
[null,null,null,null,null,null,null,null,null,null,null,null,null,null,"35-0000  Food Preparation and Serving Related Occupations",null,"Journeyman Molder","51-4071.00"]
[null,null,null,null,null,null,null,null,null,null,null,null,null,null,"37-0000  Building and Grounds Cleaning and Maintenance Occupations",null,"Mold Maker","51-4071.00"]
[null,null,null,null,null,null,null,null,null,null,null,null,null,null,"39-0000  Personal Care and Service Occupations",null,"Molder","51-4071.00"]
[null,null,null,null,null,null,null,null,null,null,null,null,null,null,"41-0000  Sales and Related Occupations",null,"No Bake Molder","51-4071.00"]
[null,null,null,null,null,null,null,null,null,null,null,null,null,null,"43-0000  Office and Administrative Support Occupations",null,"Sand Molder","51-4071.00"]
[null,null,null,null,null,null,null,null,null,null,null,null,null,null,"45-0000  Farming, Fishing, and Forestry Occupations",null,"Shell Core Operator","51-4071.00"]
[null,null,null,null,null,null,null,null,null,null,null,null,null,null,"47-0000  Construction and Extraction Occupations",null,"Shell Mold Operator","51-4071.00"]
[null,null,null,null,null,null,null,null,null,null,null,null,null,null,"49-0000  Installation, Maintenance, and Repair Occupations",null,"Gear Machinist","51-4041.00"]
[null,null,null,null,null,null,null,null,null,null,null,null,null,null,"51-0000  Production Occupations",null,"Journeyman Machinist","51-4041.00"]
[null,null,null,null,null,null,null,null,null,null,null,null,null,null,"53-0000  Transportation and Material Moving Occupations",null,"Machine Operator","51-4041.00"]
[null,null,null,null,null,null,null,null,null,null,null,null,null,null,null,null,"Machine Repair Person","51-4041.00"]
[null,null,null,null,null,null,null,null,null,null,null,null,null,null,null,null,"Machinist","51-4041.00"]
[null,null,null,null,null,null,null,null,null,null,null,null,null,null,null,null,"Maintenance Machinist","51-4041.00"]
[null,null,null,null,null,null,null,null,null,null,null,null,null,null,null,null,"Maintenance Specialist","51-4041.00"]
[null,null,null,null,null,null,null,null,null,null,null,null,null,null,null,null,"Production Machinist","51-4041.00"]
[null,null,null,null,null,null,null,null,null,null,null,null,null,null,null,null,"Set-Up Machinist","51-4041.00"]
[null,null,null,null,null,null,null,null,null,null,null,null,null,null,null,null,"Tool Room Machinist","51-4041.00"]

{"sheet":"Data","index":3,"n_rows":3,"n_cols":97,"rows_kept":3,"cut":false,"hidden":false,"merged":[]}
["GRANT INFORMATION",null,null,null,null,null,"STATUS",null,null,null,null,null,"PERSONAL INFORMATION",null,null,null,null,null,null,null,null,null,null,null,null,null,null,null,"ALTERNATIVE CONTACT",null,null,"DEMOGRAPHIC",null,null,"EMPLOYMENT",null,null,null,null,null,null,null,null,"SCREENING",null,null,"PROGRAM ASSISTANCE",null,null,null,null,null,null,null,null,"SUPPORT SERVICES",null,null,null,null,"TEMPORARY ASSISTANCE",null,null,null,null,null,"PROGRAM INFORMATION",null,null,null,null,null,null,null,null,null,null,null,null,null,null,null,null,null,null,null,null,null,"QUARTERLY INFORMATION"]
[1.1000000000000001,1.2,1.3,1.4,1.5,1.6,2.1,2.2000000000000002,2.2999999999999998,2.4,2.5,2.6,3.1,3.2,3.3,3.4,3.5,3.6,3.7,3.8,3.9,"3.10","3.11","3.12","3.13","3.14","3.15","3.16","4.1","4.2","4.3","5.1","5.2","5.3","6.1","6.2","6.3","6.4","6.5","6.6","6.7","6.8","6.9","7.1","7.2","7.3","8.1","8.2","8.3","8.4","8.5","8.6","8.7","8.8","8.9","9.1","9.2","9.3","9.4","9.5","10.1","10.2","10.3","10.4","10.5","10.6","11.1","11.2","11.3","11.4","11.5","11.6","11.7","11.8","11.9","11.10","11.11","11.12","11.13","11.14","11.15","11.16","11.17","11.18","11.19","11.20","11.21","11.22","12.1","12.2","12.3","12.4","12.5","12.6","12.7","12.8","12.9"]
[{"$f":"Form!C4","v":"AP-27832-15-60-A-6"},{"$f":"Form!F4","v":"Los Rios Community College District"},{"$f":"Form!C5","v":"American Apprenticeship Initiative"},{"$f":"Form!F5","v":"American River College"},{"$f":"Form!C6","v":0},{"$f":"Form!F6","v":0},{"$f":"Form!C10","v":0},{"$f":"Form!F10","v":"00:00:00"},{"$f":"Form!C11","v":0},{"$f":"Form!F11","v":"00:00:00"},{"$f":"Form!C12","v":"--"},{"$f":"Form!F12","v":"00:00:00"},{"$f":"Form!C16","v":0},{"$f":"Form!F16","v":0},{"$f":"Form!C17","v":0},{"$f":"Form!F17","v":0},{"$f":"Form!C18","v":"***********"},{"$f":"Form!F18","v":0},{"$f":"Form!C19","v":0},{"$f":"Form!F19","v":0},{"$f":"Form!C20","v":0},{"$f":"Form!F20","v":0},{"$f":"Form!C21","v":0},{"$f":"Form!F21","v":0},{"$f":"Form!C22","v":0},{"$f":"Form!F22","v":0},{"$f":"Form!C23","v":"00:00:00"},{"$f":"Form!F23","v":0},{"$f":"Form!C26","v":0},{"$f":"Form!F26","v":0},{"$f":"Form!C27","v":0},{"$f":"Form!C31","v":0},{"$f":"Form!F31","v":0},{"$f":"Form!C32","v":0},{"$f":"Form!C36","v":0},{"$f":"Form!F36","v":0},{"$f":"Form!C37","v":0},{"$f":"Form!F37","v":0},{"$f":"Form!C38","v":0},{"$f":"Form!F38","v":0},{"$f":"Form!C39","v":0},{"$f":"Form!F39","v":0},{"$f":"Form!C40","v":0},{"$f":"Form!C44","v":0},{"$f":"Form!F44","v":0},{"$f":"Form!C45","v":0},{"$f":"Form!C49","v":0},{"$f":"Form!F49","v":0},{"$f":"Form!C50","v":0},{"$f":"Form!F50","v":0},{"$f":"Form!C51","v":0},{"$f":"Form!F51","v":0},{"$f":"Form!C52","v":0},{"$f":"Form!F52","v":0},{"$f":"Form!C53","v":0},{"$f":"Form!C57","v":0},{"$f":"Form!F57","v":0},{"$f":"Form!C58","v":0},{"$f":"Form!F58","v":0},{"$f":"Form!C59","v":0},{"$f":"Form!C63","v":0},{"$f":"Form!F63","v":0},{"$f":"Form!C64","v":0},{"$f":"Form!F64","v":0},{"$f":"Form!C65","v":0},{"$f":"Form!F65","v":0},{"$f":"Form!C69","v":0},{"$f":"Form!F69","v":{"$error":"#N/A"}},{"$f":"Form!C70","v":0},{"$f":"Form!F70","v":0},{"$f":"Form!C71","v":0},{"$f":"Form!F71","v":0},{"$f":"Form!C72","v":0},{"$f":"Form!F72","v":0},{"$f":"Form!C73","v":0},{"$f":"Form!F73","v":0},{"$f":"Form!C74","v":0},{"$f":"Form!F74","v":0},{"$f":"Form!C75","v":"00:00:00"},{"$f":"Form!F75","v":0},{"$f":"Form!C76","v":0},{"$f":"Form!F76","v":0},{"$f":"Form!C77","v":"00:00:00"},{"$f":"Form!F77","v":0},{"$f":"Form!C78","v":0},{"$f":"Form!F78","v":"00:00:00"},{"$f":"Form!C79","v":0},{"$f":"Form!F79","v":0},{"$f":"Form!C84","v":0},{"$f":"Form!C85","v":0},{"$f":"Form!C86","v":0},{"$f":"Form!C89","v":0},{"$f":"Form!C90","v":0},{"$f":"Form!C91","v":0},{"$f":"Form!F84","v":0},{"$f":"Form!F85","v":0},{"$f":"Form!F86","v":0}]

{"sheet":"PrintedForm","index":4,"n_rows":69,"n_cols":6,"rows_kept":69,"cut":false,"hidden":false,"merged":[[0,0,0,5],[1,0,1,5]]}
["Pre-Apprentice Intake Form"]
["California Advanced Manufacturing Apprenticeship Collaborative"]
["Grant Number:",null,{"$f":"Form!C4","v":"AP-27832-15-60-A-6"},"Grantee Name:",null,{"$f":"Form!F4","v":"Los Rios Community College District"}]
["Program Name:",null,{"$f":"Form!C5","v":"American Apprenticeship Initiative"},"Program Sponsor Name:",null,{"$f":"Form!F5","v":"American River College"}]
["Employer Name:",null,{"$f":"Form!C6","v":0},"Employer Id #:",null,{"$f":"Form!F6","v":0}]
["Today's Date:",null,{"$f":"Form!F10","v":"00:00:00"},{"$f":"Form!C10","v":0}]
["Start Date:",null,{"$f":"Form!F12","v":"00:00:00"},"End Date:",null,{"$f":"Form!F12","v":"00:00:00"}]
["College:",null,{"$f":"Form!C11","v":0},"Participant #:",null,{"$f":"Form!C12","v":"--"}]
[]
["Personal Information"]
["Last Name/Suffix:",null,{"$f":"Form!C16&\" \"&Form!C17","v":" "},"First and Middle Names:",null,{"$f":"Form!F16&\" \"&Form!F17","v":" "}]
["Social Security #:",null,null,"Date of Birth:",null,{"$f":"Form!C23","v":"00:00:00"}]
["Gender",null,{"$f":"Form!F22","v":0},"Street Address:",null,{"$f":"Form!C19","v":0}]
["City/State:",null,{"$f":"Form!F19&\", \"&Form!C20","v":", "},"Zip:",null,{"$f":"Form!F20","v":0}]
["Mobile Phone:",null,{"$f":"Form!F21","v":0},"Home Phone:",null,{"$f":"Form!C21","v":0}]
["Email Address:",null,{"$f":"Form!C22","v":0},"Permission to contact via text:",null,{"$f":"Form!F23","v":0}]
["Alternative Contact Name:",null,{"$f":"Form!C26","v":0}]
["Phone:",null,{"$f":"Form!C27","v":0},"Email Address:",null,{"$f":"Form!F26","v":0}]
[]
["Demographic Information"]
["Disability Status:",null,{"$f":"Form!C31","v":0},"Race/Ethnicity:",null,{"$f":"Form!C32","v":0}]
["Veteran Status:",null,{"$f":"Form!F31","v":0}]
[]
["Education/Employment Information"]
["Education Status:",null,{"$f":"Form!F36","v":0},"Current Employment Status",null,{"$f":"Form!F37","v":0}]
["Current/Most Recent Occupation",null,{"$f":"Form!C36","v":0},"Annual Earnings Prior to Enrollment:",null,{"$f":"Form!C37","v":0}]
["Unemployment Compensation Eligibility:",null,{"$f":"Form!C38","v":0},"Unemployment Insurance Status:",null,{"$f":"Form!F38","v":0}]
["Employment Level:",null,{"$f":"Form!C39","v":0},"Underemployed Worker:",null,{"$f":"Form!F39","v":0}]
["Long-Term Unemployed:",null,{"$f":"Form!C40","v":0}]
[]
["Screening Information"]
["Drug/Alcohol Screening:",null,{"$f":"Form!C44","v":0},"Criminal Background Check:",null,{"$f":"Form!F44","v":0}]
["Physical Examination Received:",null,{"$f":"Form!C45","v":0}]
[]
["Program Assistance"]
["Adult Basic Education",null,{"$f":"Form!C49","v":0},"Foundational Skills Instruction",null,{"$f":"Form!C50","v":0}]
["Work-Based Learning Experience",null,{"$f":"Form!C52","v":0},"Pre- or Basic Occupational Skills",null,{"$f":"Form!C53","v":0}]
["Life Skills/Job Readiness Instruction",null,{"$f":"Form!F50","v":0},"Pre-GED/GED Instruction",null,{"$f":"Form!F51","v":0}]
["English as a Second Language",null,{"$f":"Form!C51","v":0},"Study or Test Preparation Skills",null,{"$f":"Form!F49","v":0}]
["Work-Based Learning Hours:",null,{"$f":"Form!F52","v":0}]
[]
["Support Services"]
["Case Management Assistance",null,{"$f":"Form!C57","v":0},"Child Care Assistance",null,{"$f":"Form!C58","v":0}]
["Work Clothes/Tools/Equipment",null,{"$f":"Form!F57","v":0},"Other Supportive Services",null,{"$f":"Form!F58","v":0}]
["Transportation Assistance",null,{"$f":"Form!C59","v":0}]
[]
["Temporary Assistance Services"]
["Temporary Assistance to Needy",null,{"$f":"Form!C63","v":0},"WIA/WIOA Participant",null,{"$f":"Form!C64","v":0}]
["Supplemental SSI/SSD",null,{"$f":"Form!F63","v":0},"Wagner-Peyser Act",null,{"$f":"Form!F64","v":0}]
["Trade Adjustment Assistance",null,{"$f":"Form!C65","v":0},"Other Public Assistance",null,{"$f":"Form!F65","v":0}]
[]
["Program Information"]
["Occupational Title:",null,{"$f":"Form!C69","v":0},"Occupational Code:",null,{"$f":"Form!F69","v":{"$error":"#N/A"}}]
["Entry Wage:",null,{"$f":"Form!C71","v":0}]
["On-the-Job Credit Hours:",null,{"$f":"Form!F70","v":0},"Hours of Instruction:",null,{"$f":"Form!C70","v":0}]
["Term Length:",null,{"$f":"Form!C72","v":0},"Related Technical Instruction:",null,{"$f":"Form!F72","v":0}]
["Term Remaining:",null,{"$f":"Form!F74","v":0},"Received Interim Credit:",null,{"$f":"Form!C74","v":0}]
["Probationary Date:",null,{"$f":"Form!F73","v":"00:00:00"},"Expected Completion Date:",null,{"$f":"Form!C75","v":"00:00:00"}]
["Degree Attenuation:",null,{"$f":"Form!F71","v":0},"Certificate Received:",null,{"$f":"Form!C73","v":0}]
["Current Status:",null,{"$f":"Form!F75","v":0}]
["Employment Status 1st Quarter:",null,{"$f":"Form!C76","v":0},"Employment Status 2nd Quarter:",null,{"$f":"Form!F76","v":0}]
["Date Status Modified:",null,{"$f":"Form!C77","v":"00:00:00"},"Previous Quarter Status:",null,{"$f":"Form!F77","v":0}]
["Exit Wage:",null,{"$f":"Form!C78","v":0},"Exit Wage Date:",null,{"$f":"Form!F78","v":"00:00:00"}]
["Incumbent Worker Status:",null,{"$f":"Form!C79","v":0},"Years of College (if any):",null,{"$f":"Form!F79","v":0}]
[]
["Quarterly Information",null,"1st Quarter","2nd Quarter",null,"3rd Quarter"]
["Apprenticeship/Employment Status:",null,{"$f":"Form!C84","v":0},{"$f":"Form!C89","v":0},null,{"$f":"Form!F84","v":0}]
["Hourly Wage of Apprenticeship/Employment:",null,{"$f":"Form!C85","v":0},{"$f":"Form!C90","v":0},null,{"$f":"Form!F85","v":0}]
["Occupation Code:",null,{"$f":"Form!C87","v":{"$error":"#N/A"}},{"$f":"Form!C92","v":{"$error":"#N/A"}},null,{"$f":"Form!F87","v":{"$error":"#N/A"}}]